fUST/lending_fUST_20240106
["ID","MTS","AMOUNT","RATE_DAILY","PERIOD"]
[310374256,1704520243124,-1000.0,0.00039992,10]
[310374257,1704520243134,-817.89343411,0.00039992,10]
[310374258,1704520243143,-619.41353677,0.00039992,10]
[310374259,1704520243153,-154.81422293,0.0004,4]
[310374260,1704520243162,-1599.00661931,0.0004,4]
[310374261,1704520243172,-636.06,0.0004,3]
[310374262,1704520243181,-500.0,0.0004,3]
[310374263,1704520243190,-819.11459049,0.0004,15]
[310374264,1704520243199,-3866.2845756,0.0004,15]
[310374265,1704520243208,-2000.0,0.0004,19]
[310374266,1704520243217,-1597.77,0.0004,3]
[310374267,1704520243227,-500.0,0.0004,3]
[310374268,1704520243236,-8950.26,0.0004,3]
[310374269,1704520243245,-1381.37,0.0004,3]
[310374270,1704520243254,-885.75,0.0004,3]
[310374271,1704520243265,-500.0,0.0004,3]
[310374272,1704520243274,-2000.0,0.0004001,19]
[310374273,1704520243283,-2104.047072,0.0004002,19]
[310374274,1704520243292,-636.06,0.00040273,3]
[310374275,1704520243301,-500.0,0.00040273,3]
[310374276,1704520243311,-1597.77,0.00040273,3]
[310374277,1704520243320,-500.0,0.00040273,3]
[310374278,1704520243330,-8950.26,0.00040273,3]
[310374279,1704520243339,-1381.37,0.00040273,3]
[310374280,1704520243348,-885.75,0.00040273,3]
[310374281,1704520243358,-500.0,0.00040273,3]
[310374282,1704520243367,-301.63803436,0.00040377,4]
[310374283,1704520243376,-3481.29568938,0.00040413,4]
[310374284,1704520243385,-636.06,0.00040547,3]
[310374285,1704520243395,-500.0,0.00040547,3]
[310374286,1704520243405,-1597.77,0.00040547,3]
[310374287,1704520243414,-500.0,0.00040547,3]
[310374288,1704520243424,-8950.26,0.00040547,3]
[310374289,1704520243433,-1381.37,0.00040547,3]
[310374290,1704520243444,-885.75,0.00040547,3]
[310374291,1704520243454,-500.0,0.00040547,3]
[310374292,1704520243463,-1453.72119363,0.0004078,2]
[310374293,1704520243473,-610.87624864,0.00040792,2]
[310374294,1704520243482,-5202.9399975,0.00040792,4]
[310374295,1704520243492,-504.23144232,0.00040792,2]
[310374296,1704520243501,-222.40884334,0.00040792,4]
[310374297,1704520243514,-769.34841012,0.00040792,10]
[310374298,1704520243525,-4290.8308025,0.00040798,10]
[310374299,1704520243534,-4290.8308025,0.00040798,10]
[310374300,1704520243544,-5400.87835341,0.000408,10]
[310374301,1704520243555,-208.22,0.000408,4]
[310374302,1704520243565,-636.06,0.00040821,3]
[310374303,1704520243574,-500.0,0.00040821,3]
[310374304,1704520243584,-1597.77,0.00040821,3]
[310374305,1704520243594,-500.0,0.00040821,3]
[310374306,1704520243606,-994.03450262,0.00040821,3]
[310374307,1704520243619,-5406.68916652,0.00040821,3]
[310374308,1704520243630,-2549.53633086,0.00040821,3]
[310374309,1704520243640,-1381.37,0.00040821,3]
[310374310,1704520243650,-885.75,0.00040821,3]
[310374311,1704520243660,-95.75680878,0.00040821,3]
[310374312,1704520243672,-404.24319122,0.00040821,3]
[310374313,1704520243682,-160.0,0.00040862,3]
[310374314,1704520243695,-964.24354989,0.00040894,2]
[310374315,1704520243705,-1000.0,0.00040952,2]
[310374316,1704520243715,-155.8099379,0.0004099,7]
[310374317,1704520243725,-211.07566614,0.0004099,4]
[310374318,1704520243735,-1377.2078768,0.0004099,4]
[310374319,1704520243746,-392.47058487,0.00040997,4]
[310374320,1704520243755,-244.2897849,0.00040997,4]
[310374321,1704520243769,-300.68220091,0.00040997,2]
[310374322,1704520243778,-155.4171241,0.00040997,2]
[310374323,1704520243788,-2055.65250322,0.00040997,4]
[310374324,1704520243798,-1015.41082938,0.00040997,4]
[310374325,1704520243810,-2406.1764529,0.00040997,4]
[310374331,1704520246183,-0.49836842,0.00023288,2]
[310374332,1704520246195,-160.3104772,0.00023288,2]
[310374333,1704520246206,-500.0,0.00023288,2]
[310374335,1704520246216,-407.56214323,0.00023288,2]
[310374337,1704520246227,-500.0,0.00023288,2]
[310374339,1704520246237,-311.4703306,0.00023288,2]
[310374341,1704520246247,-633.80384623,0.00023288,2]
[310374343,1704520246258,-200.0,0.00032201,15]
[310374344,1704520246274,-200.0,0.00032201,15]
[310374345,1704520246285,-368.0,0.00032201,15]
[310374346,1704520246296,-244.53728594,0.00032876,7]
[310374347,1704520246307,-500.0,0.00032876,7]
[310374348,1704520246319,-475.35288467,0.00032876,7]
[310374349,1704520246329,-483.60274795,0.00032876,7]
[310374350,1704520246340,-200.0,0.00035421,15]
[310374351,1704520246350,-200.0,0.00035421,15]
[310374352,1704520246360,-200.0,0.00035421,15]
[310374353,1704520246370,-337.0,0.00035421,15]
[310374354,1704520246381,-2688.7756677,0.00040997,4]
[310374355,1704520246391,-155.2286395,0.00040997,4]
[310374356,1704520246401,-330.94944783,0.00040997,4]
[310374357,1704520246411,-2974.8308315,0.00040997,4]
[310374359,1704520448622,648.7474286,0.000125,2]
[310374360,1704520462120,268.32910712,0.0001,2]
[310374361,1704520517238,-508.6242048,0.00019991,2]
[310374362,1704520517260,-154.82968734,0.00019992,2]
[310374363,1704520517281,-3256.88592321,0.00019992,2]
[310374364,1704520517303,-300.0,0.0002,2]
[310374365,1704520517325,-233.697544,0.00020993,2]
[310374366,1704520517347,-1880.81948451,0.00021,2]
[310374367,1704520517368,-6285.14315614,0.00021,2]
[310374368,1704520534799,200.0,0.00023099,7]
[310374369,1704520580872,-260.72265961,0.00020999,2]
[310374370,1704520580893,-933.27734039,0.00021,2]
[310374376,1704521054233,-245.82782927,0.00019607,2]
[310374377,1704521054261,-164.61856536,0.00019608,2]
[310374378,1704521054469,-8.37645703,0.00019608,2]
[310374379,1704521064330,-498.4517207,0.000197,2]
[310374380,1704521064484,-10.1724841,0.000197,2]
[310374381,1704521074875,-1545.78871187,0.000197,2]
[310374382,1704521075033,-31.5467084,0.000197,2]
[310374383,1704521083731,-174.73357117,0.00019699,2]
[310374384,1704521083759,-148.23842217,0.000197,2]
[310374385,1704521083954,-6.59126517,0.000197,2]
[310374386,1704521084201,316.38072817,0.000197,2]
[310374387,1704521084228,322.97199334,0.000197,2]
[310374388,1704521084530,-232.44122631,0.000197,2]
[310374389,1704521084557,-471.49969074,0.000197,2]
[310374390,1704521084783,227.3415166,0.00018824,2]
[310374391,1704521084988,385.14533214,0.000197,2]
[310374392,1704521085016,689.86209871,0.000197,2]
[310374393,1704521085046,499.60485335,0.000197,2]
[310374394,1704521092708,-1987.76057133,0.000197,2]
[310374395,1704521092817,-40.56654227,0.000197,2]
[310374396,1704521094097,322.14948125,0.000197,2]
[310374397,1704521157505,-5000.0,0.000197,2]
[310374398,1704521157660,-5000.0,0.000197,2]
[310374399,1704521157777,-3681.29969267,0.000197,2]
[310374405,1704521316226,-2460.0570353,0.000197,2]
[310374406,1704521316405,-50.20524562,0.000197,2]
[310374409,1704521381483,-5000.0,0.000197,2]
[310374410,1704521381783,-5000.0,0.000197,2]
[310374411,1704521381857,-5000.0,0.000197,2]
[310374412,1704521382035,-5000.0,0.000197,2]
[310374413,1704521382131,-5000.0,0.000197,2]
[310374414,1704521382286,-5000.0,0.000197,2]
[310374415,1704521382382,-5000.0,0.000197,2]
[310374416,1704521382501,-5000.0,0.000197,2]
[310374417,1704521382614,-5000.0,0.000197,2]
[310374418,1704521382730,-5000.0,0.000197,2]
[310374419,1704521382842,-2176.44163694,0.000197,2]
[310374422,1704521425879,-1545.78871187,0.000197,2]
[310374423,1704521426074,-31.5467084,0.000197,2]
[310374439,1704521434540,-7549.83407262,0.00019701,2]
[310374440,1704521434550,-174.741013,0.00019722,2]
[310374441,1704521434559,-676.3587277,0.0002,2]
[310374442,1704521434569,-1194.15929222,0.0002,2]
[310374443,1704521434579,-2991.89800169,0.0002,2]
[310374444,1704521434588,-177.074096,0.00020425,2]
[310374445,1704521434597,-24900.0,0.00020593,2]
[310374446,1704521434607,-1019.46116191,0.00020998,2]
[310374447,1704521434616,-10453.93004593,0.00021,2]
[310374448,1704521434626,-166.666666,0.00021918,2]
[310374449,1704521434635,-4912.75517152,0.00022,2]
[310374450,1704521434645,-3916.3398371,0.00022,2]
[310374451,1704521434654,-245.65133887,0.00022406,2]
[310374452,1704521434664,-174.73357117,0.00022406,2]
[310374453,1704521434673,-508.6242048,0.00022407,2]
[310374454,1704521434692,-156.72230709,0.00022407,2]
[310374455,1704521434708,-245.82782927,0.00022408,2]
[310374456,1704521434718,-2028.3271136,0.00022408,2]
[310374457,1704521434728,-268.8999641,0.00022409,2]
[310374458,1704521434738,-166.666666,0.00022431,2]
[310374459,1704521434748,-166.666666,0.00022944,2]
[310374460,1704521434758,-2091.44093784,0.00023,2]
[310374461,1704521434768,-3316.975767,0.00023,2]
[310374502,1704521438481,-2846.00909816,0.00023,2]
[310374503,1704521438496,-453.22118573,0.00023,2]
[310374504,1704521438511,-1984.26842325,0.00023,2]
[310374506,1704521438525,-1309.69799713,0.00023,2]
[310374507,1704521438535,-166.666666,0.00023456,2]
[310374508,1704521438544,-166.666666,0.00023969,2]
[310374509,1704521438554,-384.4765782,0.00023998,2]
[310374510,1704521438566,-1685.09432451,0.00023998,2]
[310374511,1704521438578,-752.29588203,0.00023998,2]
[310374512,1704521438588,-166.666666,0.00024482,2]
[310374513,1704521438598,-322.14948125,0.00024899,2]
[310374514,1704521438607,-344.52854123,0.00025,2]
[310374516,1704521438617,-1242.36006,0.00025,2]
[310374519,1704521438629,-3464.65092899,0.00025,2]
[310374520,1704521438638,-525.41295756,0.00026,2]
[310374521,1704521438648,-613.44573934,0.00026478,2]
[310374522,1704521438658,-2483.08597309,0.00026479,2]
[310374523,1704521438667,-312.6006807,0.000288,2]
[310374524,1704521438677,-155.0,0.000289,2]
[310374525,1704521438687,-156.58332193,0.00029779,2]
[310374526,1704521438696,-3659.85423734,0.00029878,2]
[310374527,1704521438706,-568.42609196,0.00029879,2]
[310374528,1704521438715,-1238.90884901,0.00029886,2]
[310374529,1704521438726,-1735.74473674,0.00029887,2]
[310374530,1704521438736,-1584.26915139,0.00029887,2]
[310374531,1704521438745,-277.01159784,0.00029888,2]
[310374532,1704521438754,-871.39988609,0.00029888,2]
[310374533,1704521438763,-1573.84262865,0.00029888,2]
[310374534,1704521438773,-9875.45108419,0.00029889,2]
[310374535,1704521438782,-6866.97712574,0.0002989,3]
[310374536,1704521438793,-1052.17287426,0.0002989,3]
[310374537,1704521438803,-309.65937468,0.00029898,2]
[310374538,1704521438813,-271.72897209,0.00029898,2]
[310374539,1704521438822,-491.80137398,0.00029899,2]
[310374540,1704521438832,-475.35288468,0.00029899,2]
[310374541,1704521438841,-163.02485729,0.00029899,2]
[310374542,1704521438851,-87809.68788176,0.000299,2]
[310374543,1704521438863,-188190.31211824,0.000299,2]
[310374544,1704521438871,-154.84515385,0.00029998,2]
[310374545,1704521438880,-155.08988105,0.00029998,2]
[310374546,1704521438889,-173.27317487,0.00029998,2]
[310374547,1704521438898,-260.47343373,0.00029998,2]
[310374548,1704521438908,-166.27946488,0.00029998,2]
[310374549,1704521438917,-2633.35645047,0.00029999,2]
[310374550,1704521438927,-7352.32653545,0.0003,17]
[310374551,1704521438936,-387.0,0.0003,2]
[310374552,1704521438945,-155.0,0.0003027,2]
[310374553,1704521438955,-156.58332193,0.00030366,2]
[310374554,1704521438964,-2000.0,0.000308,2]
[310374555,1704521438973,-2000.0,0.0003081,2]
[310374556,1704521438982,-2000.0,0.0003082,2]
[310374557,1704521438992,-2000.0,0.0003083,2]
[310374558,1704521439001,-2000.0,0.0003084,2]
[310374559,1704521439010,-2000.0,0.0003085,2]
[310374560,1704521439019,-2791.033499,0.0003086,2]
[310374561,1704521439029,-156.58332193,0.00030953,2]
[310374562,1704521439039,-618.2066392,0.00030999,4]
[310374563,1704521439048,-211.03896368,0.00030999,4]
[310374564,1704521439058,-492.69358761,0.00030999,4]
[310374565,1704521439068,-103870.08264571,0.00031,4]
[310374566,1704521439078,-1464.56216826,0.00031492,4]
[310374567,1704521439091,-156.58332193,0.0003154,2]
[310374568,1704521439100,-155.0,0.0003164,2]
[310374569,1704521439110,-11870.00979993,0.00032,10]
[310374570,1704521439119,-295.08082439,0.00032876,7]
[310374571,1704521439128,-1474.621482,0.00033,2]
[310374572,1704521439137,-245.41474178,0.00033,4]
[310374573,1704521439146,-155.07727581,0.00033,4]
[310374574,1704521439156,-163.0,0.00033,2]
[310374575,1704521439167,-155.0,0.0003301,2]
[310374576,1704521439178,-163.0,0.00033151,2]
[310374577,1704521439187,-259.188,0.00033386,2]
[310374578,1704521439196,-425.34326566,0.00033687,4]
[310374579,1704521439207,-181.8541402,0.00033918,2]
[310374580,1704521439216,-34334.91273338,0.00034,2]
[310374581,1704521439226,-1000.0,0.00034,7]
[310374582,1704521439236,-155.0,0.0003438,2]
[310374583,1704521439245,-11919.66758038,0.000345,2]
[310374584,1704521439255,-2553.161024,0.00034521,2]
[310374585,1704521439264,-163.0,0.00034521,2]
[310374586,1704521439273,-561.40849445,0.000349,2]
[310374587,1704521439283,-282.78427369,0.00035,4]
[310374588,1704521439292,-7798.15163609,0.00035,4]
[310374589,1704521439301,-3541.79156626,0.00035,2]
[310374590,1704521439310,-590.79111504,0.00035,2]
[310374591,1704521439320,-2660.07799725,0.00035,4]
[310374592,1704521439329,-4349.6256334,0.00035,4]
[310374593,1704521439339,-476.32081937,0.00035,4]
[310374594,1704521439348,-1455.75460259,0.00035,14]
[310374595,1704521439358,-8000.0,0.000351,30]
[310374596,1704521439367,-281.78382395,0.00035379,2]
[310374597,1704521439376,-452.0,0.00035452,2]
[310374598,1704521439385,-39926.56661117,0.000355,14]
[310374599,1704521439396,-517.60482023,0.00035616,3]
[310374600,1704521439406,-500.0,0.00035616,3]
[310374601,1704521439414,-515.0206101,0.00035616,3]
[310374602,1704521439424,-512.17019467,0.00035616,3]
[310374603,1704521439434,-500.0,0.00035616,3]
[310374604,1704521439443,-500.08697044,0.00035616,3]
[310374605,1704521439453,-500.0,0.00035616,3]
[310374606,1704521439464,-514.15754476,0.00035616,14]
[310374607,1704521439474,-582.51334347,0.00035616,2]
[310374608,1704521439484,-212.85803751,0.00035616,2]
[310374609,1704521439493,-500.0,0.00035616,3]
[310374610,1704521439503,-500.0,0.00035616,3]
[310374611,1704521439513,-505.27064241,0.00035616,3]
[310374612,1704521439523,-500.0,0.00035616,3]
[310374613,1704521439533,-500.0,0.00035616,3]
[310374614,1704521439543,-504.7796127,0.00035616,3]
[310374615,1704521439553,-500.0,0.00035616,3]
[310374616,1704521439563,-500.0,0.00035616,3]
[310374617,1704521439572,-358.33337075,0.00035616,3]
[310374618,1704521439582,-500.0,0.00035616,3]
[310374619,1704521439591,-500.0,0.00035616,3]
[310374620,1704521439601,-503.54,0.00035616,3]
[310374621,1704521439611,-500.0,0.00035616,3]
[310374622,1704521439620,-500.0,0.00035616,3]
[310374623,1704521439629,-500.0,0.00035616,3]
[310374624,1704521439638,-500.0,0.00035616,3]
[310374625,1704521439647,-500.0,0.00035616,3]
[310374626,1704521439657,-500.0,0.00035616,3]
[310374627,1704521439666,-500.0,0.00035616,3]
[310374628,1704521439675,-500.0,0.00035616,3]
[310374629,1704521439684,-500.0,0.00035616,3]
[310374630,1704521439694,-500.0,0.00035616,3]
[310374631,1704521439703,-337.06367174,0.00035616,3]
[310374632,1704521439715,-500.0,0.00035616,3]
[310374633,1704521439724,-500.0,0.00035616,3]
[310374634,1704521439735,-500.0,0.00035616,3]
[310374635,1704521439744,-500.0,0.00035616,3]
[310374636,1704521439753,-1264.9,0.00035616,3]
[310374637,1704521439762,-500.0,0.00035616,3]
[310374638,1704521439771,-511.097766,0.00035616,3]
[310374639,1704521439780,-500.0,0.00035616,3]
[310374640,1704521439790,-500.0,0.00035616,3]
[310374641,1704521439799,-500.0,0.00035616,3]
[310374642,1704521439808,-500.0,0.00035616,3]
[310374643,1704521439817,-500.0,0.00035616,3]
[310374644,1704521439827,-505.29088612,0.00035616,3]
[310374645,1704521439836,-500.0,0.00035616,3]
[310374646,1704521439846,-500.0,0.00035616,3]
[310374647,1704521439855,-500.0,0.00035616,3]
[310374648,1704521439864,-500.0,0.00035616,3]
[310374649,1704521439874,-500.0,0.00035616,3]
[310374650,1704521439883,-500.0,0.00035616,3]
[310374651,1704521439894,-597.78004292,0.00035616,3]
[310374652,1704521439903,-500.0,0.00035616,3]
[310374653,1704521439912,-500.0,0.00035616,3]
[310374654,1704521439921,-502.72305038,0.00035616,3]
[310374655,1704521439931,-500.0,0.00035616,3]
[310374656,1704521439940,-500.0,0.00035616,3]
[310374657,1704521439949,-500.0,0.00035616,3]
[310374658,1704521439960,-510.97783528,0.00035616,3]
[310374659,1704521439970,-1093.59,0.00035616,3]
[310374660,1704521439979,-500.0,0.00035616,3]
[310374661,1704521439988,-500.0,0.00035616,3]
[310374662,1704521439998,-506.57414684,0.00035616,3]
[310374663,1704521440007,-701.22,0.00035616,3]
[310374664,1704521440016,-501.80203555,0.00035616,2]
[310374665,1704521440025,-511.16309898,0.00035616,3]
[310374666,1704521440035,-500.0,0.00035616,3]
[310374667,1704521440044,-500.0,0.00035616,3]
[310374668,1704521440054,-500.0,0.00035616,3]
[310374669,1704521440063,-533.63353953,0.00035616,3]
[310374670,1704521440072,-500.0,0.00035616,3]
[310374671,1704521440080,-500.0,0.00035616,3]
[310374672,1704521440089,-500.0,0.00035616,3]
[310374673,1704521440098,-500.0,0.00035616,3]
[310374674,1704521440108,-442.01695768,0.00035616,3]
[310374675,1704521440117,-500.0,0.00035616,3]
[310374676,1704521440126,-500.0,0.00035616,3]
[310374677,1704521440135,-500.0,0.00035616,3]
[310374678,1704521440145,-166.364766,0.00035616,120]
[310374679,1704521440155,-150.83408251,0.00035748,4]
[310374680,1704521440164,-155.0,0.0003575,2]
[310374681,1704521440174,-456.24577957,0.00035765,2]
[310374682,1704521440184,-6016.91358238,0.00035765,2]
[310374683,1704521440194,-1007.74821391,0.00035765,2]
[310374684,1704521440203,-424.17513463,0.00035765,2]
[310374685,1704521440214,-193.30178621,0.00035765,2]
[310374686,1704521440223,-173.01980251,0.00035765,2]
[310374687,1704521440232,-2553.161024,0.00035798,2]
[310374688,1704521440242,-418.68360299,0.0003589,3]
[310374689,1704521440251,-523.03150165,0.0003589,3]
[310374690,1704521440260,-505.41923659,0.0003589,3]
[310374691,1704521440269,-507.07556743,0.0003589,3]
[310374692,1704521440278,-511.00435323,0.0003589,3]
[310374693,1704521440287,-507.01927649,0.0003589,3]
[310374694,1704521440297,-500.0,0.0003589,3]
[310374695,1704521440306,-509.48262239,0.0003589,3]
[310374696,1704521440315,-329.10985589,0.0003589,3]
[310374697,1704521440324,-506.03265185,0.0003589,3]
[310374698,1704521440333,-505.81350492,0.0003589,3]
[310374699,1704521440343,-503.54,0.0003589,3]
[310374700,1704521440352,-500.0,0.0003589,3]
[310374701,1704521440361,-510.00178322,0.0003589,3]
[310374702,1704521440370,-511.43644294,0.0003589,3]
[310374703,1704521440379,-500.0,0.0003589,3]
[310374704,1704521440388,-506.09346854,0.0003589,3]
[310374705,1704521440397,-509.44134385,0.0003589,3]
[310374706,1704521440407,-507.20724551,0.0003589,3]
[310374707,1704521440416,-517.62035945,0.0003589,3]
[310374708,1704521440425,-505.08561459,0.0003589,3]
[310374709,1704521440435,-529.41381062,0.0003589,3]
[310374710,1704521440444,-500.0,0.0003589,3]
[310374711,1704521440454,-506.30776035,0.0003589,3]
[310374712,1704521440464,-521.59429854,0.0003589,3]
[310374713,1704521440474,-527.67346704,0.0003589,3]
[310374714,1704521440483,-1264.9,0.0003589,3]
[310374715,1704521440492,-518.86235743,0.0003589,3]
[310374716,1704521440501,-514.17023555,0.0003589,3]
[310374717,1704521440510,-506.48336976,0.0003589,3]
[310374718,1704521440520,-500.0,0.0003589,3]
[310374719,1704521440529,-500.0,0.0003589,3]
[310374720,1704521440634,-511.82509961,0.0003589,3]
[310374721,1704521440645,-229.52217026,0.0003589,3]
[310374722,1704521440654,-550.81688216,0.0003589,3]
[310374723,1704521440664,-507.78877084,0.0003589,3]
[310374724,1704521440673,-500.0,0.0003589,3]
[310374725,1704521440683,-511.15113817,0.0003589,3]
[310374726,1704521440692,-508.31365666,0.0003589,3]
[310374727,1704521440702,-500.0,0.0003589,3]
[310374728,1704521440712,-500.0,0.0003589,3]
[310374729,1704521440721,-500.0,0.0003589,3]
[310374730,1704521440731,-531.73227445,0.0003589,3]
[310374731,1704521440741,-500.67464367,0.0003589,3]
[310374732,1704521440750,-1093.59,0.0003589,3]
[310374733,1704521440760,-507.08090987,0.0003589,3]
[310374734,1704521440769,-514.40614223,0.0003589,3]
[310374735,1704521440779,-701.22,0.0003589,3]
[310374736,1704521440788,-520.9424481,0.0003589,3]
[310374737,1704521440797,-525.09020232,0.0003589,3]
[310374738,1704521440807,-502.12330031,0.0003589,3]
[310374739,1704521440816,-404.45932086,0.0003589,3]
[310374740,1704521440825,-500.0,0.0003589,3]
[310374741,1704521440835,-500.0,0.0003589,3]
[310374742,1704521440849,-503.84331703,0.0003589,3]
[310374743,1704521440859,-500.0,0.0003589,3]
[310374744,1704521440868,-500.0,0.0003589,3]
[310374745,1704521440877,-526.05114037,0.0003589,3]
[310374746,1704521440887,-169.413658,0.00035994,2]
[310374747,1704521440899,-394.880142,0.00035994,2]
[310374748,1704521440908,-169.413656,0.00035994,2]
[310374749,1704521440918,-394.880142,0.00035994,2]
[310374750,1704521440927,-164.102703,0.00035994,2]
[310374751,1704521440936,-168.185517,0.00035994,2]
[310374752,1704521440946,-197.440071,0.00035994,2]
[310374753,1704521440955,-500.0,0.00036164,3]
[310374754,1704521440966,-503.54,0.00036164,3]
[310374755,1704521440975,-500.0,0.00036164,3]
[310374756,1704521440985,-500.0,0.00036164,3]
[310374757,1704521440994,-500.0,0.00036164,3]
[310374758,1704521441004,-1264.9,0.00036164,3]
[310374759,1704521441014,-417.15089141,0.00036164,3]
[310374760,1704521441023,-500.0,0.00036164,3]
[310374761,1704521441033,-500.0,0.00036164,3]
[310374762,1704521441042,-500.0,0.00036164,3]
[310374763,1704521441052,-500.0,0.00036164,3]
[310374764,1704521441062,-500.0,0.00036164,3]
[310374765,1704521441072,-1093.59,0.00036164,3]
[310374766,1704521441082,-701.22,0.00036164,3]
[310374767,1704521441092,-500.0,0.00036164,3]
[310374768,1704521441101,-383.63532071,0.00036164,3]
[310374769,1704521441110,-500.0,0.00036164,3]
[310374770,1704521441119,-500.0,0.00036164,3]
[310374771,1704521441128,-164.0,0.00036247,2]
[310374772,1704521441138,-159.0,0.00036386,2]
[310374773,1704521441147,-200.59,0.000364,4]
[310374774,1704521441156,-500.0,0.00036438,3]
[310374775,1704521441170,-503.54,0.00036438,3]
[310374776,1704521441179,-223.46103181,0.00036438,3]
[310374777,1704521441188,-500.94262929,0.00036438,3]
[310374778,1704521441197,-500.0,0.00036438,3]
[310374779,1704521441208,-1264.9,0.00036438,3]
[310374780,1704521441218,-500.0,0.00036438,3]
[310374781,1704521441226,-255.56943756,0.00036438,3]
[310374782,1704521441235,-500.0,0.00036438,3]
[310374783,1704521441244,-258.16133869,0.00036438,3]
[310374784,1704521441253,-500.0,0.00036438,3]
[310374785,1704521441262,-1093.59,0.00036438,3]
[310374786,1704521441272,-701.22,0.00036438,3]
[310374787,1704521441281,-500.0,0.00036438,3]
[310374788,1704521441290,-500.0,0.00036438,3]
[310374789,1704521441300,-500.0,0.00036438,3]
[310374790,1704521441310,-394.880142,0.00036443,2]
[310374791,1704521441320,-394.880142,0.00036443,2]
[310374792,1704521441329,-197.440071,0.00036443,2]
[310374793,1704521441339,-1273.715387,0.00036458,2]
[310374794,1704521441349,-150.83408251,0.00036477,2]
[310374795,1704521441357,-3561.26162046,0.00036587,3]
[310374796,1704521441366,-833.86160769,0.00036587,2]
[310374797,1704521441375,-422.70705592,0.00036712,3]
[310374798,1704521441384,-503.54,0.00036712,3]
[310374799,1704521441393,-500.0,0.00036712,3]
[310374800,1704521441402,-1264.9,0.00036712,3]
[310374801,1704521441411,-500.0,0.00036712,3]
[310374802,1704521441420,-500.0,0.00036712,3]
[310374803,1704521441430,-500.0,0.00036712,3]
[310374804,1704521441439,-1093.59,0.00036712,3]
[310374805,1704521441449,-701.22,0.00036712,3]
[310374806,1704521441459,-500.0,0.00036712,3]
[310374807,1704521441468,-500.0,0.00036712,3]
[310374808,1704521441477,-472.67650371,0.00036712,3]
[310374809,1704521441487,-394.880142,0.00036893,2]
[310374810,1704521441496,-394.880142,0.00036893,2]
[310374811,1704521441506,-197.440071,0.00036893,2]
[310374812,1704521441515,-15528.05810637,0.000369,5]
[310374813,1704521441524,-3078.49381259,0.0003698,4]
[310374814,1704521441534,-503.54,0.00036986,3]
[310374815,1704521441544,-500.0,0.00036986,3]
[310374816,1704521441553,-1264.9,0.00036986,3]
[310374817,1704521441562,-500.0,0.00036986,3]
[310374818,1704521441572,-500.0,0.00036986,3]
[310374819,1704521441580,-500.0,0.00036986,3]
[310374820,1704521441590,-1093.59,0.00036986,3]
[310374821,1704521441599,-701.22,0.00036986,3]
[310374822,1704521441608,-500.0,0.00036986,3]
[310374823,1704521441617,-500.0,0.00036986,3]
[310374824,1704521441626,-2553.161024,0.00037075,2]
[310374825,1704521441635,-4254.30513082,0.00037078,2]
[310374826,1704521441645,-155.0,0.0003712,2]
[310374827,1704521441654,-300.0,0.000372,19]
[310374828,1704521441663,-503.54,0.0003726,3]
[310374829,1704521441672,-500.0,0.0003726,3]
[310374830,1704521441682,-1264.9,0.0003726,3]
[310374831,1704521441691,-500.0,0.0003726,3]
[310374832,1704521441701,-500.0,0.0003726,3]
[310374833,1704521441712,-500.0,0.0003726,3]
[310374834,1704521441732,-1093.59,0.0003726,3]
[310374835,1704521441743,-701.22,0.0003726,3]
[310374836,1704521441753,-500.0,0.0003726,3]
[310374837,1704521441762,-500.0,0.0003726,3]
[310374838,1704521441772,-394.880142,0.00037343,2]
[310374839,1704521441781,-394.880142,0.00037343,2]